fUSD/lending_fUSD_20250312
["ID","MTS","AMOUNT","RATE_DAILY","PERIOD"]
[355987703,1741769437478,-194304.96570928,0.0001,2]
[355987704,1741769437532,-30524.62566315,0.0001,2]
[355987705,1741769437545,-98181.25590224,0.0001,2]
[355987706,1741769437641,-37004.86202383,0.0001,2]
[355987707,1741769437653,-14168.84209087,0.0001,2]
[355987712,1741769439581,-534.63361288,0.0001,2]
[355987713,1741769439594,-717.61258241,0.0001,2]
[355987714,1741769439610,-960.84388288,0.0001,2]
[355987715,1741769439622,-965.73999803,0.0001,2]
[355987716,1741769439697,-41185.18943851,0.0001,2]
[355987717,1741769439709,-2299.19999989,0.0001,2]
[355987718,1741769439752,-660.07913423,0.0001,2]
[355987719,1741769439764,-475.8703,0.0001,2]
[355987720,1741769439775,-2475.98433995,0.0001,2]
[355987721,1741769439859,-4403.8120149,0.0001,2]
[355987722,1741769439871,-1746.3324078,0.0001,2]
[355987723,1741769439887,-4980.16031994,0.0001,2]
[355987724,1741769439899,-11148.5019612,0.0001,2]
[355987725,1741769439911,-2267.16292566,0.0001,2]
[355987744,1741769442581,-296.13443335,0.0001,2]
[355987745,1741769442593,-758.57759602,0.0001,2]
[355987746,1741769442634,-83787.26407208,0.0001,2]
[355987747,1741769442645,-520.74992602,0.0001,2]
[355987764,1741769443312,-638.55,0.0001,2]
[355987765,1741769443323,-623.04022109,0.0001,2]
[355987766,1741769445517,-268.987887,0.0001,2]
[355987767,1741769445528,-318.8803487,0.0001,2]
[355987768,1741769445571,-8313.22055777,0.0001,2]
[355987775,1741769468979,-299.68117616,9e-05,2]
[355987776,1741769472897,-250.31882384,9e-05,2]
[355987777,1741769472923,-83.06117616,9.441e-05,2]
[355987778,1741769634533,-337.5,9.33e-05,2]
[355987779,1741769634569,-916.93882384,9.441e-05,2]
[355987780,1741769634624,-491.12235232,9.62e-05,2]
[355987784,1741770283967,1079.85,8.219e-05,2]
[355987785,1741770323920,500.0,0.00028514,120]
[355987786,1741770324175,500.0,0.00028514,120]
[355987787,1741770324443,277.97758375,0.00028514,120]
[355987799,1741770631771,-150.0,8.965e-05,2]
[355987800,1741770631782,-165.01,9.061e-05,2]
[355987801,1741770631792,-200.0,9.11e-05,2]
[355987802,1741770631801,-407.529993,9.125e-05,2]
[355987803,1741770631813,-283.950007,9.125e-05,2]
[355987804,1741770631823,-683.47076549,9.149e-05,2]
[355987805,1741770631834,-334.60004339,9.149e-05,2]
[355987806,1741770631848,-22881.92919112,9.149e-05,2]
[355987807,1741770631858,-150.0,9.205e-05,2]
[355987808,1741770631868,-155.12,9.212e-05,2]
[355987809,1741770631878,-550.0,9.235e-05,2]
[355987810,1741770631888,-1305.24,9.258e-05,2]
[355987811,1741770631899,-991.11,9.28e-05,2]
[355987812,1741770631908,-157.67,9.33e-05,2]
[355987813,1741770631918,-250.0,9.351e-05,2]
[355987814,1741770631928,-348.81,9.351e-05,2]
[355987815,1741770631938,-294.1,9.351e-05,2]
[355987816,1741770631947,-545.8,9.351e-05,2]
[355987817,1741770631956,-999.99,9.351e-05,2]
[355987818,1741770631966,-150.0,9.444e-05,2]
[355987819,1741770631975,-3426.23250817,9.487e-05,2]
[355987820,1741770631989,-166.67,9.489e-05,2]
[355987821,1741770631998,-150.0,9.62e-05,2]
[355987822,1741770632009,-150.0,9.684e-05,2]
[355987823,1741770632018,-150.0,9.899e-05,2]
[355987824,1741770632027,-438.33,9.9e-05,2]
[355987825,1741770632036,-3849.7782,9.9e-05,2]
[355987826,1741770632046,-226.4575,9.9e-05,2]
[355987827,1741770632056,-4020.9328,9.9e-05,2]
[355987828,1741770632065,-2051.2974,9.9e-05,2]
[355987829,1741770632075,-223.1545,9.9e-05,2]
[355987830,1741770632084,-313.8384,9.9e-05,2]
[355987831,1741770632094,-1229.6717,9.9e-05,2]
[355987832,1741770632103,-1200.0,9.9e-05,3]
[355987833,1741770632112,-1007.0,9.9e-05,2]
[355987834,1741770632122,-1000.0,9.9e-05,2]
[355987835,1741770632131,-14253.03353246,9.91e-05,2]
[355987836,1741770632142,-343.28965258,9.91e-05,2]
[355987837,1741770632160,-706.92122751,9.91e-05,2]
[355987838,1741770632171,-1000.0,9.91e-05,2]
[355987938,1741770637558,-1018.2581,9.91e-05,2]
[355987940,1741770637570,-29952.56965885,9.91e-05,2]
[355987941,1741770637579,-106.99973703,9.923e-05,2]
[355987942,1741770637612,-43.00026297,9.923e-05,2]
[355987943,1741770637622,-8713.42690614,9.929e-05,2]
[355987944,1741770637667,-1477.22,9.929e-05,2]
[355987945,1741770637679,-713.80528119,9.929e-05,2]
[355987946,1741770637722,-12879.00860092,9.929e-05,2]
[355987947,1741770637738,-4164.21269789,9.929e-05,2]
[355987948,1741770637748,-508.48032191,9.973e-05,2]
[355987949,1741770637757,-160.20004523,9.973e-05,2]
[355987950,1741770637767,-1520.985,9.999e-05,2]
[355987951,1741770637778,-188.079,9.999e-05,2]
[355987952,1741770637787,-9775.22459283,0.0001,2]
[355987953,1741770637805,-15516.09650624,0.0001,2]
[355987954,1741770637834,-1014.65399562,0.0001,2]
[355987955,1741770637846,-1163.10000005,0.0001,2]
[355987956,1741770637858,-540.68,0.0001,2]
[355987968,1741770639787,-179926.70837634,0.0001,2]
[355987969,1741770639799,-14782.23912584,0.0001,2]
[355987970,1741770639810,-329.50499989,0.0001,2]
[355987971,1741770639841,-25674.88708287,0.0001,2]
[355987972,1741770639851,-502.455724,0.0001,2]
[355987973,1741770639860,-2400.0,0.0001,3]
[355987974,1741770639870,-1000.0,0.0001,2]
[355987975,1741770639880,-7217.81486272,0.0001,2]
[355987976,1741770639891,-154.47,0.00010063,2]
[355987977,1741770639901,-550.0,0.00010133,2]
[355987978,1741770639911,-433.81336617,0.00010162,2]
[355987979,1741770639921,-150.0,0.00010163,2]
[355987980,1741770639931,-157.59829387,0.0001018,2]
[355987981,1741770639941,-1351.10712612,0.0001018,2]
[355987982,1741770639951,-1430.75483888,0.0001018,2]
[355987983,1741770639961,-1317.04998512,0.0001018,2]
[355987984,1741770639972,-550.0,0.00010184,2]
[355987985,1741770639981,-3677.0301255,0.00010203,2]
[355987986,1741770639998,-1028.8756,0.00010247,2]
[355987987,1741770640008,-5851.20550324,0.0001027,2]
[355987988,1741770640017,-343.70477762,0.00010279,2]
[355987989,1741770640026,-500.0,0.00010279,2]
[355987990,1741770640036,-500.0,0.00010279,2]
[355987991,1741770640046,-500.0,0.00010279,2]
[355987992,1741770640056,-500.0,0.00010279,2]
[355987993,1741770640067,-500.0,0.00010279,2]
[355987994,1741770640077,-500.0,0.00010279,2]
[355987995,1741770640087,-500.0,0.00010279,2]
[355987996,1741770640097,-166.06664975,0.00010279,2]
[355987997,1741770640106,-6218.88035839,0.0001028,2]
[355987998,1741770640116,-27908.12360654,0.0001028,2]
[355987999,1741770640137,-645.85735123,0.0001028,2]
[355988000,1741770640161,-777.73029275,0.0001028,2]
[355988001,1741770640173,-3613.01084398,0.0001028,2]
[355988002,1741770640184,-10300.03278253,0.0001028,2]
[355988003,1741770640196,-6352.86323013,0.0001028,2]
[355988004,1741770640207,-4217.54015466,0.0001028,2]
[355988005,1741770640218,-1891.83830736,0.0001028,2]
[355988006,1741770640229,-1740.0911033,0.0001028,2]
[355988007,1741770640245,-1199.30233872,0.0001028,2]
[355988008,1741770640257,-150685.86189409,0.0001028,2]
[355988009,1741770640269,-2177.27208999,0.0001028,2]
[355988010,1741770640281,-830.05985149,0.0001028,2]
[355988011,1741770640294,-1270.15857547,0.0001028,2]
[355988028,1741770645122,-402.91602697,0.0001028,2]
[355988058,1741770645744,-1359.78332748,0.0001028,2]
[355988073,1741770645899,-19541.59114629,0.0001028,2]
[355988074,1741770645910,-13349.57284,0.0001028,2]
[355988075,1741770645920,-280.01812866,0.0001028,2]
[355988076,1741770645932,-9007.32843651,0.0001028,2]
[355988077,1741770645943,-1901.54109989,0.0001028,2]
[355988078,1741770646182,-8311.8,0.0001028,2]
[355988080,1741770660564,500.0,0.00028514,120]
[355988081,1741770660808,500.0,0.00028514,120]
[355988082,1741770661082,485.65546143,0.00028514,120]
[355988083,1741770740184,500.0,0.00028514,120]
[355988084,1741770740456,500.0,0.00028514,120]
[355988085,1741770740703,500.0,0.00028514,120]
[355988086,1741770740942,500.0,0.00028514,120]
[355988087,1741770741209,500.0,0.00028514,120]
[355988088,1741770741457,367.12,0.00028514,120]
[355988089,1741770744355,500.0,0.00028514,120]
[355988090,1741770744978,500.0,0.00028514,120]
[355988091,1741770745239,500.0,0.00028514,120]
[355988092,1741770745519,500.0,0.00028514,120]
[355988093,1741770745792,625.81,0.00028514,120]
[355988094,1741770748655,500.0,0.00028514,120]
[355988095,1741770748898,500.0,0.00028514,120]
[355988096,1741770749468,595.42,0.00028514,120]
[355988097,1741770751985,500.0,0.00028514,120]
[355988098,1741770752097,500.0,0.00028514,120]
[355988099,1741770752373,500.0,0.00028514,120]
[355988100,1741770752602,500.0,0.00028514,120]
[355988101,1741770752852,500.0,0.00028514,120]
[355988102,1741770753111,500.0,0.00028514,120]
[355988103,1741770753369,500.0,0.00028514,120]
[355988104,1741770753629,500.0,0.00028514,120]
[355988105,1741770753885,500.0,0.00028514,120]
[355988106,1741770754131,309.48,0.00028515,120]
[355988107,1741770756189,506.41207581,0.00028515,120]
[355988108,1741770758455,500.0,0.00028515,120]
[355988109,1741770758710,500.0,0.00028515,120]
[355988110,1741770758960,500.0,0.00028515,120]
[355988111,1741770759208,500.0,0.00028515,120]
[355988112,1741770759449,500.0,0.00028515,120]
[355988113,1741770759687,500.0,0.00028515,120]
[355988114,1741770759956,500.0,0.00028515,120]
[355988115,1741770760299,603.56,0.00028515,120]
[355988116,1741770761704,500.0,0.00028515,120]
[355988117,1741770761945,500.0,0.00028515,120]
[355988118,1741770762199,500.0,0.00028515,120]
[355988119,1741770762435,500.0,0.00028515,120]
[355988120,1741770762705,500.0,0.00028515,120]
[355988121,1741770762991,500.0,0.00028515,120]
[355988122,1741770763243,500.0,0.00028515,120]
[355988123,1741770763466,516.46,0.00028515,120]
[355988124,1741770765565,500.0,0.00028515,120]
[355988125,1741770765816,500.0,0.00028515,120]
[355988126,1741770766128,500.0,0.00028515,120]
[355988127,1741770766388,613.4,0.00028515,120]
[355988128,1741770768450,500.0,0.00028515,120]
[355988129,1741770768712,500.0,0.00028515,120]
[355988130,1741770768962,500.0,0.00028515,120]
[355988131,1741770769205,500.0,0.00028515,120]
[355988132,1741770769441,500.0,0.00028515,120]
[355988133,1741770769668,500.0,0.00028515,120]
[355988134,1741770769914,500.0,0.00028515,120]
[355988135,1741770770162,492.75,0.00028515,120]
[355988136,1741770773515,500.0,0.00028515,120]
[355988137,1741770773886,500.0,0.00028515,120]
[355988138,1741770773930,500.0,0.00028515,120]
[355988139,1741770774130,500.0,0.00028515,120]
[355988140,1741770774175,500.0,0.00028515,120]
[355988141,1741770774382,500.0,0.00028515,120]
[355988142,1741770774428,500.0,0.00028515,120]
[355988143,1741770774630,500.0,0.00028515,120]
[355988144,1741770774677,500.0,0.00028515,120]
[355988145,1741770774908,500.0,0.00028515,120]
[355988146,1741770774952,492.88,0.00028515,120]
[355988147,1741770775156,500.0,0.00028515,120]
[355988148,1741770775444,500.0,0.00028515,120]
[355988149,1741770775702,500.0,0.00028515,120]
[355988150,1741770775968,474.91,0.00028515,120]
[355988151,1741770778028,500.0,0.00028515,120]
[355988152,1741770778345,500.0,0.00028515,120]
[355988153,1741770778601,500.0,0.00028515,120]
[355988154,1741770778853,500.0,0.00028515,120]
[355988155,1741770779046,500.0,0.00028515,120]
[355988156,1741770779094,354.18,0.00028515,120]
[355988157,1741770779324,500.0,0.00028515,120]
[355988158,1741770779593,500.0,0.00028515,120]
[355988159,1741770779831,500.0,0.00028515,120]
[355988160,1741770780104,500.0,0.00028515,120]
[355988161,1741770780505,500.0,0.00028515,120]
[355988162,1741770780746,500.0,0.00028515,120]
[355988163,1741770780999,500.0,0.00028515,120]
[355988164,1741770781219,500.0,0.00028515,120]
[355988165,1741770781283,500.0,0.00028515,120]
[355988166,1741770781513,500.0,0.00028515,120]
[355988167,1741770781558,247.45,0.00028515,120]
[355988168,1741770781824,500.0,0.00028515,120]
[355988169,1741770782075,500.0,0.00028515,120]
[355988170,1741770782332,330.51,0.00028515,120]
[355988171,1741770789649,500.0,0.00028515,120]
[355988172,1741770789895,500.0,0.00028515,120]
[355988173,1741770790149,500.0,0.00028515,120]
[355988174,1741770790425,500.0,0.00028515,120]
[355988175,1741770790676,500.0,0.00028515,120]
[355988176,1741770790920,500.0,0.00028515,120]
[355988177,1741770791165,500.0,0.00028515,120]
[355988178,1741770791424,500.0,0.00028515,120]
[355988179,1741770791667,500.0,0.00028515,120]
[355988180,1741770791963,403.23,0.00028515,120]
[355988181,1741770794002,500.0,0.00028515,120]
[355988182,1741770794257,500.0,0.00028515,120]
[355988183,1741770794546,500.0,0.00028515,120]
[355988184,1741770794814,500.0,0.00028515,120]
[355988185,1741770795058,500.0,0.00028515,120]
[355988186,1741770795313,278.89,0.00028515,120]
[355988187,1741770795622,505.94226986,0.00028515,120]
[355988188,1741770801825,500.0,0.00028515,120]
[355988189,1741770802111,185.91,0.00028515,120]
[355988190,1741770804061,500.0,0.00028515,120]
[355988191,1741770804350,500.0,0.00028515,120]
[355988192,1741770804614,500.0,0.00028515,120]
[355988193,1741770804882,607.9,0.00028515,120]
[355988194,1741770806853,500.0,0.00028515,120]
[355988195,1741770808737,500.0,0.00028515,120]
[355988196,1741770808971,500.0,0.00028515,120]
[355988197,1741770809264,238.42,0.00028515,120]
[355988198,1741770811181,500.0,0.00028515,120]
[355988199,1741770811511,500.0,0.00028515,120]
[355988200,1741770811762,500.0,0.00028515,120]
[355988201,1741770812051,500.0,0.00028515,120]
[355988202,1741770812311,500.0,0.00028515,120]
[355988203,1741770812594,254.01,0.00028515,120]
[355988204,1741770819627,500.0,0.00028515,120]
[355988205,1741770819868,500.0,0.00028515,120]
[355988206,1741770820121,500.0,0.00028515,120]
[355988207,1741770820392,444.26,0.00028515,120]
[355988208,1741770822691,500.0,0.00028515,120]
[355988209,1741770822965,500.0,0.00028515,120]
[355988210,1741770823232,500.0,0.00028515,120]
[355988211,1741770823500,500.0,0.00028515,120]
[355988212,1741770824231,500.0,0.00028515,120]
[355988213,1741770824476,500.0,0.00028515,120]
[355988214,1741770824715,500.0,0.00028515,120]
[355988215,1741770824993,500.0,0.00028515,120]
[355988216,1741770825273,500.0,0.00028515,120]
[355988217,1741770825564,500.0,0.00028515,120]
[355988218,1741770825831,500.0,0.00028515,120]
[355988219,1741770826070,500.0,0.00028515,120]
[355988220,1741770826382,444.14,0.00028515,120]
[355988221,1741770829982,500.0,0.00028515,120]
[355988222,1741770830558,500.0,0.00028515,120]
[355988223,1741770830813,500.0,0.00028515,120]
[355988224,1741770831060,500.0,0.00028515,120]
[355988225,1741770831511,500.0,0.00028515,120]
[355988226,1741770831553,500.0,0.00028515,120]
[355988227,1741770831807,564.99,0.00028515,120]
[355988228,1741770835271,500.0,0.00028515,120]
[355988229,1741770835530,500.0,0.00028515,120]
[355988230,1741770835780,500.0,0.00028515,120]
[355988231,1741770836014,500.0,0.00028515,120]
[355988232,1741770836270,500.0,0.00028515,120]
[355988233,1741770836553,500.0,0.00028515,120]
[355988234,1741770836841,500.0,0.00028515,120]
[355988235,1741770837151,500.0,0.00028515,120]
[355988236,1741770837402,500.0,0.00028515,120]
[355988237,1741770837658,204.27,0.00028515,120]
[355988238,1741770848689,500.0,0.00028515,120]
[355988239,1741770848921,500.0,0.00028515,120]
[355988240,1741770849162,500.0,0.00028515,120]
[355988241,1741770849730,500.0,0.00028515,120]
[355988242,1741770849994,337.72,0.00028515,120]
[355988243,1741770852132,500.0,0.00028515,120]
[355988244,1741770858627,504.11393753,0.00028515,120]
[355988245,1741770866211,500.0,0.00028515,120]
[355988246,1741770867788,500.0,0.00028515,120]
[355988247,1741770868083,500.0,0.00028515,120]
[355988248,1741770868361,335.47,0.00028515,120]
[355988249,1741770874812,500.0,0.00028515,120]
[355988250,1741770877323,500.0,0.00028515,120]
[355988251,1741770877580,500.0,0.00028515,120]
[355988252,1741770878178,500.0,0.00028515,120]
[355988253,1741770878495,283.31,0.00028515,120]
[355988254,1741770886737,502.22211297,0.00028515,120]
[355988255,1741770894332,503.12847071,0.00028515,120]
[355988256,1741770899254,500.0,0.00028515,120]
[355988257,1741770899576,500.0,0.00028515,120]
[355988258,1741770899815,315.07,0.00028515,120]
[355988259,1741770904184,500.0,0.00028515,120]
[355988260,1741770904444,500.0,0.00028515,120]
[355988261,1741770904710,500.0,0.00028515,120]
[355988262,1741770904953,500.0,0.00028515,120]
[355988263,1741770905213,500.0,0.00028515,120]
[355988264,1741770905460,222.7,0.00028515,120]
[355988265,1741770907526,500.0,0.00028515,120]
[355988266,1741770907769,500.0,0.00028515,120]
[355988267,1741770908066,500.0,0.00028515,120]
[355988268,1741770908392,500.0,0.00028515,120]
[355988269,1741770908692,500.0,0.00028515,120]
[355988270,1741770908958,500.0,0.00028515,120]
[355988271,1741770909198,232.04,0.00028515,120]
[355988272,1741770914808,500.0,0.00028515,120]
[355988273,1741770915053,500.0,0.00028515,120]
[355988274,1741770915319,500.0,0.00028515,120]
[355988275,1741770915597,500.0,0.00028515,120]
[355988276,1741770915867,645.46661241,0.00028515,120]
[355988277,1741770919527,500.0,0.00028515,120]
[355988278,1741770919782,500.0,0.00028515,120]
[355988279,1741770920394,500.0,0.00028515,120]
[355988280,1741770920672,500.0,0.00028515,120]
[355988281,1741770920936,500.0,0.00028515,120]
[355988282,1741770921214,430.22,0.00028515,120]
[355988283,1741770925162,500.0,0.00028515,120]
[355988284,1741770925477,500.0,0.00028515,120]
[355988285,1741770926021,500.0,0.00028515,120]
[355988286,1741770926480,336.11590144,0.00028515,120]
[355988287,1741770928506,504.36468599,0.00028515,120]
[355988288,1741770930467,500.36203524,0.00028515,120]
[355988289,1741770936414,500.0,0.00028515,120]
[355988290,1741770936683,500.0,0.00028515,120]
[355988291,1741770936932,500.0,0.00028515,120]
[355988292,1741770937162,500.0,0.00028515,120]
[355988293,1741770937438,452.28545025,0.00028515,120]
[355988294,1741770947476,500.0,0.00028515,120]
[355988295,1741770947788,500.0,0.00028515,120]
[355988296,1741770948142,500.0,0.00028515,120]
[355988297,1741770948457,252.81,0.00028515,120]
[355988298,1741770950871,500.0,0.00028515,120]
[355988299,1741770951135,500.0,0.00028515,120]
[355988300,1741770951386,500.0,0.00028515,120]
[355988301,1741770951637,500.0,0.00028515,120]
[355988302,1741770951899,500.0,0.00028515,120]
[355988303,1741770952159,500.0,0.00028515,120]
[355988304,1741770952424,500.0,0.00028515,120]
[355988305,1741770952871,500.0,0.00028515,120]
[355988306,1741770952964,500.0,0.00028515,120]
[355988307,1741770953219,500.0,0.00028515,120]
[355988308,1741770953461,500.0,0.00028515,120]
[355988309,1741770953711,500.0,0.00028515,120]
[355988310,1741770953997,500.0,0.00028515,120]
[355988311,1741770954238,500.0,0.00028515,120]
[355988312,1741770954476,500.0,0.00028515,120]
[355988313,1741770954725,500.0,0.00028515,120]
[355988314,1741770954982,500.0,0.00028515,120]
[355988315,1741770955233,500.0,0.00028515,120]
[355988316,1741770955475,500.0,0.00028515,120]
[355988317,1741770955712,500.0,0.00028515,120]
[355988318,1741770955988,500.0,0.00028515,120]
[355988319,1741770956255,500.0,0.00028515,120]
[355988320,1741770956495,500.0,0.00028515,120]
[355988321,1741770956725,477.26,0.00028515,120]
[355988322,1741770970924,500.0,0.00028515,120]
[355988323,1741770971214,500.0,0.00028515,120]
[355988324,1741770971525,491.7,0.00028515,120]
[355988325,1741770973475,500.0,0.00028515,120]
[355988326,1741770973715,500.0,0.00028515,120]
[355988328,1741770973978,276.94,0.00028515,120]
[355988329,1741770977584,500.0,0.00028515,120]
[355988330,1741770977849,500.0,0.00028515,120]
[355988331,1741770978109,500.0,0.00028515,120]
[355988332,1741770978356,517.36776962,0.00028515,120]
[355988333,1741770982261,500.0,0.00028515,120]
[355988334,1741770982535,500.0,0.00028515,120]
[355988335,1741770982812,525.48,0.00028515,120]
[355988336,1741770990418,500.0,0.00028515,120]
[355988337,1741770990665,500.0,0.00028515,120]
[355988338,1741770990945,500.0,0.00028515,120]
[355988339,1741770991208,500.0,0.00028515,120]
[355988340,1741770991822,500.0,0.00028515,120]
[355988341,1741770992071,382.35747979,0.00028515,120]
[355988342,1741770994083,500.0,0.00028515,120]
[355988343,1741770994408,500.0,0.00028515,120]
[355988344,1741770994661,500.0,0.00028515,120]
[355988345,1741770994943,378.36,0.00028515,120]
[355988346,1741770996988,500.0,0.00028515,120]
[355988347,1741770997332,181.95,0.00028515,120]
[355988348,1741771009884,500.0,0.00028515,120]
[355988349,1741771010126,500.0,0.00028515,120]
[355988350,1741771010380,500.0,0.00028515,120]
[355988351,1741771010633,399.12210673,0.00028515,120]
[355988352,1741771012527,500.0,0.00028515,120]
[355988353,1741771014587,500.0,0.00028515,120]
[355988354,1741771014830,429.63,0.00028515,120]
[355988355,1741771016845,500.0,0.00028515,120]
[355988356,1741771017109,500.0,0.00028515,120]
[355988357,1741771017409,500.0,0.00028515,120]
[355988358,1741771017650,350.24,0.00028515,120]
[355988359,1741771019832,500.0,0.00028515,120]
[355988360,1741771020104,500.0,0.00028515,120]
[355988361,1741771020337,500.0,0.00028515,120]
[355988362,1741771020564,644.80109687,0.00028515,120]
[355988363,1741771022498,500.0,0.00028515,120]
[355988364,1741771022759,609.83,0.00028515,120]
[355988365,1741771026321,500.75897666,0.00028515,120]
[355988366,1741771028460,545.89,0.00028515,120]
[355988367,1741771034518,500.0,0.00028515,120]
[355988368,1741771034768,500.0,0.00028515,120]
[355988369,1741771035011,500.0,0.00028515,120]
[355988370,1741771035265,163.38,0.00028515,120]
[355988371,1741771038709,500.0,0.00028515,120]
[355988372,1741771038955,500.0,0.00028515,120]
[355988373,1741771039197,500.0,0.00028515,120]
[355988374,1741771039789,324.67,0.00028515,120]
[355988375,1741771045522,500.0,0.00028515,120]
[355988376,1741771045814,500.0,0.00028515,120]
[355988377,1741771046062,395.30946917,0.00028515,120]
[355988378,1741771051991,500.0,0.00028515,120]
[355988379,1741771052242,500.0,0.00028515,120]
[355988380,1741771052519,548.53,0.00028515,120]
[355988381,1741771058077,500.44691944,0.00028509,120]
[355988382,1741771064867,500.0,0.00028509,120]
[355988383,1741771065123,500.0,0.00028509,120]
[355988384,1741771065378,500.0,0.00028509,120]
[355988385,1741771065667,500.0,0.00028509,120]
[355988386,1741771065930,200.39,0.00028509,120]
[355988387,1741771068074,500.0,0.00028509,120]
[355988388,1741771068164,500.0,0.00028509,120]
[355988389,1741771068413,500.0,0.00028509,120]
[355988390,1741771068653,299.49,0.00028509,120]
[355988391,1741771072253,500.0,0.00028509,120]
[355988392,1741771072511,500.0,0.00028509,120]
[355988393,1741771072796,500.0,0.00028509,120]
[355988394,1741771073053,500.0,0.00028509,120]
[355988395,1741771073288,500.0,0.00028509,120]
[355988396,1741771073532,615.08,0.00028509,120]
[355988397,1741771079057,547.13,0.00028509,120]
[355988398,1741771082623,500.0,0.00028509,120]
[355988399,1741771082902,212.16496131,0.00028509,120]
[355988400,1741771084755,500.0,0.00028509,120]
[355988401,1741771085011,570.3,0.00028509,120]
[355988402,1741771087351,500.0,0.00028509,120]
[355988403,1741771087595,500.0,0.00028509,120]
[355988404,1741771087883,500.0,0.00028509,120]
[355988405,1741771088146,273.07,0.00028509,120]
[355988406,1741771090483,634.23,0.00028509,120]
[355988407,1741771094788,500.0,0.00028509,120]
[355988408,1741771095038,390.46,0.00028509,120]
[355988410,1741771100645,500.0,0.00028509,120]
[355988411,1741771100915,500.0,0.00028509,120]
[355988412,1741771101358,500.0,0.00028509,120]
[355988413,1741771101414,500.0,0.00028509,120]
[355988414,1741771101695,500.0,0.00028509,120]
[355988415,1741771101969,478.57643574,0.00028509,120]
[355988416,1741771103979,500.0,0.00028509,120]
[355988417,1741771104282,500.0,0.00028509,120]
[355988418,1741771104548,500.0,0.00028509,120]
[355988419,1741771104799,500.0,0.00028509,120]
[355988420,1741771105046,500.0,0.00028509,120]
[355988421,1741771105670,500.0,0.00028509,120]
[355988422,1741771106038,331.46,0.00028509,120]
[355988423,1741771108021,500.0,0.00028509,120]
[355988424,1741771108354,500.0,0.00028509,120]
[355988425,1741771108622,500.0,0.00028509,120]
[355988426,1741771108866,500.0,0.00028509,120]
[355988427,1741771109123,500.0,0.00028509,120]
[355988428,1741771109392,259.84449942,0.00028509,120]
[355988429,1741771111375,500.0,0.00028509,120]
[355988430,1741771121822,500.0,0.00028509,120]
[355988431,1741771122090,417.21,0.00028509,120]
[355988432,1741771124511,500.0,0.00028509,120]
[355988433,1741771124750,500.0,0.00028509,120]